fUST/lending_fUST_20250605
["ID","MTS","AMOUNT","RATE_DAILY","PERIOD"]
[364530331,1749129043250,-410.0,0.00018904,2]
[364530333,1749129043260,-998.67,0.00018904,2]
[364530335,1749129043270,-410.0,0.00018904,2]
[364530337,1749129043280,-842.0,0.00018904,2]
[364530339,1749129043290,-440.0,0.00018904,2]
[364530341,1749129043300,-539.96,0.00018904,2]
[364530343,1749129043310,-440.0,0.00018904,2]
[364530345,1749129043319,-729.47,0.00018904,2]
[364530347,1749129043329,-440.0,0.00018904,2]
[364530349,1749129043339,-440.0,0.00018904,2]
[364530351,1749129043349,-1100.89,0.00018904,2]
[364530353,1749129043358,-410.0,0.00018904,2]
[364530354,1749129043367,-628.44,0.00018904,2]
[364530355,1749129043376,-410.0,0.00018904,2]
[364530356,1749129043386,-440.0,0.00018904,2]
[364530357,1749129043396,-440.0,0.00018904,2]
[364530358,1749129043406,-1767.63,0.00018904,2]
[364530359,1749129043416,-523.36,0.00018904,2]
[364530360,1749129043426,-722.24,0.00018904,2]
[364530361,1749129043435,-440.0,0.00018904,2]
[364530362,1749129043444,-440.0,0.00018904,2]
[364530363,1749129043455,-525.45,0.00018904,2]
[364530364,1749129043465,-440.0,0.00018904,2]
[364530365,1749129043474,-440.0,0.00018904,2]
[364530366,1749129043484,-440.0,0.00018904,2]
[364530367,1749129043493,-440.0,0.00018904,2]
[364530368,1749129043503,-440.0,0.00018904,2]
[364530369,1749129043513,-1310.04,0.00018904,2]
[364530370,1749129043523,-440.0,0.00018904,2]
[364530371,1749129043532,-440.0,0.00018904,2]
[364530372,1749129043541,-440.0,0.00018904,2]
[364530373,1749129043551,-440.0,0.00018904,2]
[364530374,1749129043560,-591.03,0.00018904,2]
[364530375,1749129043570,-777.48,0.00018904,2]
[364530376,1749129043579,-6412.96,0.00018904,2]
[364530377,1749129043589,-440.0,0.00018904,2]
[364530378,1749129043598,-1989.41,0.00018904,2]
[364530379,1749129043608,-440.0,0.00018904,2]
[364530381,1749129043617,-440.0,0.00018904,2]
[364530383,1749129043627,-2786.91,0.00018904,2]
[364530384,1749129043636,-440.0,0.00018904,2]
[364530385,1749129043645,-3698.19,0.00018904,2]
[364530386,1749129043654,-440.0,0.00018904,2]
[364530387,1749129043663,-1298.6,0.00018904,2]
[364530388,1749129043672,-440.0,0.00018904,2]
[364530389,1749129043682,-2628.56,0.00018904,2]
[364530390,1749129043691,-750.16,0.00018904,2]
[364530391,1749129043702,-441.11,0.00018904,2]
[364530392,1749129043711,-642.44,0.00018904,2]
[364530394,1749129043720,-1111.6,0.00018904,2]
[364530396,1749129043729,-440.0,0.00018904,2]
[364530398,1749129043738,-845.64,0.00018904,2]
[364530400,1749129043748,-4147.91,0.00018904,2]
[364530402,1749129043757,-525.79,0.00018904,2]
[364530404,1749129043767,-440.0,0.00018904,2]
[364530406,1749129043777,-657.97,0.00018904,2]
[364530408,1749129043786,-440.0,0.00018904,2]
[364530410,1749129043796,-440.0,0.00018904,2]
[364530412,1749129043805,-440.0,0.00018904,2]
[364530414,1749129043814,-277.75440353,0.00018904,2]
[364530416,1749129043823,-500.0,0.00018904,2]
[364530418,1749129043832,-500.0,0.00018932,2]
[364530420,1749129043841,-500.0,0.00018959,2]
[364530422,1749129043850,-500.0,0.00018986,2]
[364530423,1749129043859,-6188.07807662,0.00019104,2]
[364530425,1749129043869,-294.13210489,0.00019108,2]
[364530427,1749129043878,-380.0,0.00019178,2]
[364530429,1749129043887,-410.0,0.00019178,2]
[364530431,1749129043897,-261.97,0.00019178,2]
[364530433,1749129043906,-267.50687434,0.00019178,2]
[364530435,1749129043915,-483.99,0.00019178,2]
[364530437,1749129043924,-440.0,0.00019178,2]
[364530439,1749129043934,-856.61,0.00019178,2]
[364530441,1749129043942,-440.0,0.00019178,2]
[364530443,1749129043952,-440.0,0.00019178,2]
[364530445,1749129043962,-449.9990685,0.00019178,2]
[364530447,1749129043971,-440.0,0.00019178,2]
[364530449,1749129043980,-440.0,0.00019178,2]
[364530451,1749129043989,-858.83,0.00019178,2]
[364530453,1749129043999,-440.0,0.00019178,2]
[364530455,1749129044008,-440.0,0.00019178,2]
[364530457,1749129044017,-535.8,0.00019178,2]
[364530459,1749129044027,-587.49,0.00019178,2]
[364530461,1749129044037,-440.0,0.00019178,2]
[364530463,1749129044046,-440.0,0.00019178,2]
[364530465,1749129044056,-440.0,0.00019178,2]
[364530467,1749129044066,-440.0,0.00019178,2]
[364530469,1749129044075,-440.0,0.00019178,2]
[364530471,1749129044085,-440.0,0.00019178,2]
[364530473,1749129044094,-440.0,0.00019178,2]
[364530475,1749129044103,-380.0,0.00019178,2]
[364530477,1749129044113,-440.0,0.00019178,2]
[364530479,1749129044122,-883.15,0.00019178,2]
[364530481,1749129044131,-440.0,0.00019178,2]
[364530482,1749129044140,-440.0,0.00019178,2]
[364530484,1749129044149,-440.0,0.00019178,2]
[364530486,1749129044158,-440.0,0.00019178,2]
[364530488,1749129044167,-440.0,0.00019178,2]
[364530490,1749129044177,-440.0,0.00019178,2]
[364530492,1749129044188,-300.0,0.00019178,2]
[364530494,1749129044198,-440.0,0.00019178,2]
[364530496,1749129044209,-440.0,0.00019178,2]
[364530498,1749129044220,-440.0,0.00019178,2]
[364530500,1749129044232,-440.0,0.00019178,2]
[364530502,1749129044242,-210.0,0.00019178,2]
[364530504,1749129044251,-440.0,0.00019178,2]
[364530506,1749129044260,-440.0,0.00019178,2]
[364530508,1749129044270,-400.0,0.00019178,2]
[364530510,1749129044280,-440.0,0.00019178,2]
[364530512,1749129044290,-440.0,0.00019178,2]
[364530514,1749129044301,-440.0,0.00019178,2]
[364530516,1749129044310,-440.0,0.00019178,2]
[364530518,1749129044319,-440.0,0.00019178,2]
[364530520,1749129044328,-500.0,0.00019178,2]
[364530522,1749129044338,-473.1,0.00019178,2]
[364530524,1749129044348,-672.93,0.00019178,2]
[364530526,1749129044357,-440.0,0.00019178,2]
[364530528,1749129044366,-461.38,0.00019178,2]
[364530530,1749129044375,-440.0,0.00019178,2]
[364530532,1749129044384,-440.0,0.00019178,2]
[364530534,1749129044395,-370.0,0.00019178,2]
[364530536,1749129044404,-440.0,0.00019178,2]
[364530538,1749129044414,-440.0,0.00019178,2]
[364530540,1749129044423,-452.97616701,0.00019178,2]
[364530542,1749129044433,-672.47,0.00019178,2]
[364530544,1749129044443,-440.0,0.00019178,2]
[364530546,1749129044454,-1568.37,0.00019178,2]
[364530548,1749129044463,-1375.97,0.00019178,2]
[364530550,1749129044472,-440.0,0.00019178,2]
[364530552,1749129044481,-1063.31,0.00019178,2]
[364530554,1749129044490,-4655.85,0.00019178,2]
[364530556,1749129044499,-440.0,0.00019178,2]
[364530558,1749129044509,-440.0,0.00019178,2]
[364530560,1749129044518,-440.0,0.00019178,2]
[364530562,1749129044527,-2801.57,0.00019178,2]
[364530564,1749129044537,-668.44,0.00019178,2]
[364530566,1749129044546,-483.00828249,0.00019178,2]
[364530568,1749129044556,-440.0,0.00019178,2]
[364530570,1749129044566,-3430.82,0.00019178,2]
[364530572,1749129044575,-1383.59,0.00019178,2]
[364530574,1749129044585,-1004.79,0.00019178,2]
[364530575,1749129044597,-998.67,0.00019178,2]
[364530577,1749129044608,-842.0,0.00019178,2]
[364530580,1749129044619,-440.0,0.00019178,2]
[364530581,1749129044628,-440.0,0.00019178,2]
[364530583,1749129044637,-729.47,0.00019178,2]
[364530585,1749129044646,-440.0,0.00019178,2]
[364530587,1749129044656,-440.0,0.00019178,2]
[364530589,1749129044666,-1100.89,0.00019178,2]
[364530591,1749129044675,-628.44,0.00019178,2]
[364530593,1749129044684,-440.0,0.00019178,2]
[364530595,1749129044694,-440.0,0.00019178,2]
[364530597,1749129044708,-1767.63,0.00019178,2]
[364530599,1749129044717,-523.36,0.00019178,2]
[364530601,1749129044727,-722.24,0.00019178,2]
[364530603,1749129044736,-440.0,0.00019178,2]
[364530605,1749129044746,-440.0,0.00019178,2]
[364530607,1749129044755,-525.45,0.00019178,2]
[364530609,1749129044764,-440.0,0.00019178,2]
[364530611,1749129044774,-500.34656641,0.00019178,2]
[364530613,1749129044783,-440.0,0.00019178,2]
[364530615,1749129044793,-440.0,0.00019178,2]
[364530617,1749129044802,-440.0,0.00019178,2]
[364530619,1749129044812,-1310.04,0.00019178,2]
[364530621,1749129044821,-440.0,0.00019178,2]
[364530623,1749129044830,-440.0,0.00019178,2]
[364530625,1749129044839,-440.0,0.00019178,2]
[364530627,1749129044847,-440.0,0.00019178,2]
[364530629,1749129044856,-591.03,0.00019178,2]
[364530630,1749129044866,-777.48,0.00019178,2]
[364530632,1749129044875,-6412.96,0.00019178,2]
[364530634,1749129044884,-440.0,0.00019178,2]
[364530636,1749129044893,-1989.41,0.00019178,2]
[364530638,1749129044902,-440.0,0.00019178,2]
[364530640,1749129044911,-540.66971869,0.00019178,2]
[364530642,1749129044920,-2786.91,0.00019178,2]
[364530644,1749129044929,-440.0,0.00019178,2]
[364530646,1749129044939,-3698.19,0.00019178,2]
[364530648,1749129044949,-440.0,0.00019178,2]
[364530650,1749129044958,-1298.6,0.00019178,2]
[364530652,1749129044967,-440.0,0.00019178,2]
[364530654,1749129044976,-2628.56,0.00019178,2]
[364530656,1749129044985,-750.16,0.00019178,2]
[364530658,1749129044995,-441.11,0.00019178,2]
[364530660,1749129045004,-642.44,0.00019178,2]
[364530662,1749129045013,-1111.6,0.00019178,2]
[364530664,1749129045022,-440.0,0.00019178,2]
[364530666,1749129045031,-845.64,0.00019178,2]
[364530668,1749129045040,-4147.91,0.00019178,2]
[364530670,1749129045049,-525.79,0.00019178,2]
[364530672,1749129045058,-400.0,0.00019178,2]
[364530674,1749129045067,-657.97,0.00019178,2]
[364530676,1749129045076,-440.0,0.00019178,2]
[364530678,1749129045085,-440.0,0.00019178,2]
[364530680,1749129045094,-207.556243,0.00019178,2]
[364530682,1749129045104,-500.0,0.00019185,2]
[364530683,1749129045113,-500.0,0.00019185,2]
[364530685,1749129045123,-500.0,0.00019185,2]
[364530688,1749129045132,-500.0,0.00019185,2]
[364530689,1749129045141,-500.0,0.00019185,2]
[364530691,1749129045151,-367.65937497,0.00019185,2]
[364530693,1749129045160,-642.5116649,0.00019185,2]
[364530695,1749129045170,-500.0,0.00019185,2]
[364530697,1749129045179,-443.46684055,0.00019195,2]
[364530699,1749129045189,-501.44023844,0.00019195,2]
[364530701,1749129045200,-471.30064996,0.000192,2]
[364530703,1749129045209,-500.0,0.000192,2]
[364530705,1749129045219,-500.0,0.00019205,2]
[364530707,1749129045233,-432.78039757,0.00019215,2]
[364530722,1749129045368,-500.0,0.0001922,2]
[364530724,1749129045378,-412.19465985,0.00019233,2]
[364530727,1749129045390,-500.0,0.00019234,2]
[364530728,1749129045399,-265.73935326,0.00019234,2]
[364530730,1749129045409,-500.0,0.00019234,2]
[364530732,1749129045419,-500.0,0.00019234,2]
[364530735,1749129045428,-500.0,0.00019234,2]
[364530737,1749129045438,-500.0,0.00019234,2]
[364530738,1749129045447,-16000.0,0.00019441,2]
[364530740,1749129045457,-483.99,0.00019452,2]
[364530742,1749129045466,-440.0,0.00019452,2]
[364530744,1749129045476,-856.61,0.00019452,2]
[364530746,1749129045485,-440.0,0.00019452,2]
[364530748,1749129045495,-440.0,0.00019452,2]
[364530750,1749129045504,-408.97794139,0.00019452,2]
[364530752,1749129045513,-858.83,0.00019452,2]
[364530754,1749129045522,-440.0,0.00019452,2]
[364530756,1749129045532,-440.0,0.00019452,2]
[364530758,1749129045541,-440.0,0.00019452,2]
[364530760,1749129045550,-535.8,0.00019452,2]
[364530762,1749129045560,-587.49,0.00019452,2]
[364530764,1749129045570,-525.89121644,0.00019452,2]
[364530766,1749129045579,-440.0,0.00019452,2]
[364530769,1749129045588,-440.0,0.00019452,2]
[364530772,1749129045598,-440.0,0.00019452,2]
[364530775,1749129045609,-440.0,0.00019452,2]
[364530778,1749129045618,-883.15,0.00019452,2]
[364530781,1749129045628,-440.0,0.00019452,2]
[364530784,1749129045637,-440.0,0.00019452,2]
[364530787,1749129045647,-461.22490982,0.00019452,2]
[364530789,1749129045656,-440.0,0.00019452,2]
[364530792,1749129045666,-440.0,0.00019452,2]
[364530794,1749129045676,-440.0,0.00019452,2]
[364530796,1749129045685,-440.0,0.00019452,2]
[364530798,1749129045694,-153.845607,0.00019452,2]
[364530800,1749129045705,-440.0,0.00019452,2]
[364530802,1749129045714,-440.0,0.00019452,2]
[364530804,1749129045723,-440.0,0.00019452,2]
[364530806,1749129045733,-440.0,0.00019452,2]
[364530808,1749129045743,-440.0,0.00019452,2]
[364530810,1749129045752,-321.47079416,0.00019452,2]
[364530812,1749129045761,-440.0,0.00019452,2]
[364530814,1749129045771,-440.0,0.00019452,2]
[364530816,1749129045780,-249.56751369,0.00019452,2]
[364530818,1749129045789,-473.1,0.00019452,2]
[364530820,1749129045799,-672.93,0.00019452,2]
[364530822,1749129045808,-440.0,0.00019452,2]
[364530824,1749129045818,-461.38,0.00019452,2]
[364530826,1749129045827,-440.0,0.00019452,2]
[364530828,1749129045836,-440.0,0.00019452,2]
[364530830,1749129045847,-440.0,0.00019452,2]
[364530832,1749129045856,-440.0,0.00019452,2]
[364530834,1749129045865,-672.47,0.00019452,2]
[364530835,1749129045875,-440.0,0.00019452,2]
[364530837,1749129045885,-1568.37,0.00019452,2]
[364530839,1749129045895,-432.54228499,0.00019452,2]
[364530855,1749129046034,-943.42771501,0.00019452,2]
[364530856,1749129046043,-440.0,0.00019452,2]
[364530859,1749129046056,-1063.31,0.00019452,2]
[364530861,1749129046065,-4655.85,0.00019452,2]
[364530863,1749129046075,-440.0,0.00019452,2]
[364530865,1749129046084,-440.0,0.00019452,2]
[364530867,1749129046094,-440.0,0.00019452,2]
[364530868,1749129046103,-2801.57,0.00019452,2]
[364530869,1749129046113,-668.44,0.00019452,2]
[364530870,1749129046123,-440.0,0.00019452,2]
[364530871,1749129046132,-3430.82,0.00019452,2]
[364530872,1749129046142,-1383.59,0.00019452,2]
[364530873,1749129046152,-1004.79,0.00019452,2]
[364530874,1749129046162,-998.67,0.00019452,2]
[364530876,1749129046172,-842.0,0.00019452,2]
[364530878,1749129046182,-440.0,0.00019452,2]
[364530879,1749129046192,-440.0,0.00019452,2]
[364530881,1749129046202,-729.47,0.00019452,2]
[364530883,1749129046212,-440.0,0.00019452,2]
[364530885,1749129046225,-440.0,0.00019452,2]
[364530887,1749129046236,-1100.89,0.00019452,2]
[364530889,1749129046245,-628.44,0.00019452,2]
[364530891,1749129046255,-440.0,0.00019452,2]
[364530893,1749129046266,-260.0,0.00019452,2]
[364530895,1749129046276,-1767.63,0.00019452,2]
[364530897,1749129046286,-523.36,0.00019452,2]
[364530899,1749129046296,-722.24,0.00019452,2]
[364530901,1749129046308,-440.0,0.00019452,2]
[364530903,1749129046318,-400.0,0.00019452,2]
[364530905,1749129046328,-525.45,0.00019452,2]
[364530908,1749129046338,-440.0,0.00019452,2]
[364530910,1749129046348,-440.0,0.00019452,2]
[364530912,1749129046357,-440.0,0.00019452,2]
[364530914,1749129046366,-440.0,0.00019452,2]
[364530916,1749129046380,-1310.04,0.00019452,2]
[364530918,1749129046390,-440.0,0.00019452,2]
[364530920,1749129046399,-440.0,0.00019452,2]
[364530922,1749129046409,-440.0,0.00019452,2]
[364530924,1749129046419,-440.0,0.00019452,2]
[364530926,1749129046428,-591.03,0.00019452,2]
[364530928,1749129046438,-777.48,0.00019452,2]
[364530930,1749129046447,-6412.96,0.00019452,2]
[364530932,1749129046457,-440.0,0.00019452,2]
[364530934,1749129046467,-1989.41,0.00019452,2]
[364530936,1749129046476,-440.0,0.00019452,2]
[364530938,1749129046486,-2786.91,0.00019452,2]
[364530940,1749129046498,-440.0,0.00019452,2]
[364530942,1749129046508,-3698.19,0.00019452,2]
[364530944,1749129046518,-440.0,0.00019452,2]
[364530946,1749129046527,-1298.6,0.00019452,2]
[364530948,1749129046538,-440.0,0.00019452,2]
[364530950,1749129046548,-2628.56,0.00019452,2]
[364530952,1749129046557,-750.16,0.00019452,2]
[364530954,1749129046567,-441.11,0.00019452,2]
[364530956,1749129046577,-642.44,0.00019452,2]
[364530958,1749129046587,-1111.6,0.00019452,2]
[364530961,1749129046596,-440.0,0.00019452,2]
[364530962,1749129046606,-845.64,0.00019452,2]
[364530964,1749129046616,-4147.91,0.00019452,2]
[364530967,1749129046626,-525.79,0.00019452,2]
[364530969,1749129046635,-657.97,0.00019452,2]
[364530970,1749129046645,-440.0,0.00019452,2]
[364530972,1749129046654,-177.95187781,0.00019452,2]
[364530974,1749129046664,-160.0,0.00019608,2]
[364530977,1749129046674,-160.0,0.00019608,2]
[364530979,1749129046684,-229.48950782,0.00019608,2]
[364530981,1749129046693,-160.0,0.00019608,2]
[364530983,1749129046703,-423.7637613,0.00019608,2]
[364530985,1749129046712,-842.5625,0.00019608,2]
[364530987,1749129046722,-160.0,0.00019609,2]
[364530989,1749129046731,-2709.92,0.0001964,2]
[364530991,1749129046741,-151.0,0.000197,2]
[364530993,1749129046750,-483.99,0.00019726,2]
[364530995,1749129046760,-420.0,0.00019726,2]
[364530997,1749129046769,-856.61,0.00019726,2]
[364530999,1749129046780,-440.0,0.00019726,2]
[364531001,1749129046790,-384.62518768,0.00019726,2]
[364531003,1749129046799,-495.12089706,0.00019726,2]
[364531005,1749129046808,-858.83,0.00019726,2]
[364531007,1749129046817,-231.97543053,0.00019726,2]
[364531009,1749129046828,-535.8,0.00019726,2]
[364531011,1749129046838,-262.95749568,0.00019726,2]
[364531013,1749129046847,-587.49,0.00019726,2]
[364531015,1749129046857,-440.0,0.00019726,2]
[364531017,1749129046866,-359.40649766,0.00019726,2]
[364531019,1749129046875,-440.0,0.00019726,2]
[364531021,1749129046884,-440.0,0.00019726,2]
[364531023,1749129046894,-883.15,0.00019726,2]
[364531025,1749129046903,-440.0,0.00019726,2]
[364531027,1749129046912,-440.0,0.00019726,2]
[364531029,1749129046921,-440.0,0.00019726,2]
[364531031,1749129046931,-440.0,0.00019726,2]
[364531033,1749129046940,-440.0,0.00019726,2]
[364531035,1749129046950,-440.0,0.00019726,2]
[364531037,1749129046960,-183.80560514,0.00019726,2]
[364531039,1749129046969,-451.34230826,0.00019726,2]
[364531041,1749129046979,-440.0,0.00019726,2]
[364531043,1749129046988,-440.0,0.00019726,2]
[364531045,1749129046997,-440.0,0.00019726,2]
[364531047,1749129047007,-440.0,0.00019726,2]
[364531049,1749129047016,-440.0,0.00019726,2]
[364531051,1749129047026,-473.1,0.00019726,2]
[364531053,1749129047036,-672.93,0.00019726,2]
[364531055,1749129047045,-440.0,0.00019726,2]
[364531057,1749129047054,-461.38,0.00019726,2]
[364531059,1749129047064,-440.0,0.00019726,2]
[364531061,1749129047073,-440.0,0.00019726,2]
[364531063,1749129047082,-440.0,0.00019726,2]
[364531065,1749129047091,-159.14307656,0.00019726,2]
[364531067,1749129047101,-672.47,0.00019726,2]
[364531069,1749129047110,-440.0,0.00019726,2]
[364531071,1749129047119,-1568.37,0.00019726,2]
[364531073,1749129047129,-1375.97,0.00019726,2]
[364531075,1749129047138,-440.0,0.00019726,2]
[364531077,1749129047147,-1063.31,0.00019726,2]
[364531079,1749129047156,-4655.85,0.00019726,2]
[364531081,1749129047166,-440.0,0.00019726,2]
[364531083,1749129047175,-440.0,0.00019726,2]
[364531085,1749129047184,-440.0,0.00019726,2]
[364531087,1749129047193,-2801.57,0.00019726,2]
[364531089,1749129047203,-668.44,0.00019726,2]
[364531091,1749129047212,-440.0,0.00019726,2]
[364531093,1749129047225,-3430.82,0.00019726,2]
[364531095,1749129047234,-1383.59,0.00019726,2]
[364531097,1749129047243,-1004.79,0.00019726,2]
[364531099,1749129047253,-998.67,0.00019726,2]
[364531101,1749129047263,-842.0,0.00019726,2]
[364531103,1749129047272,-440.0,0.00019726,2]
[364531105,1749129047282,-440.0,0.00019726,2]
[364531107,1749129047292,-729.47,0.00019726,2]
[364531109,1749129047304,-440.0,0.00019726,2]
[364531110,1749129047313,-440.0,0.00019726,2]
[364531112,1749129047323,-1100.89,0.00019726,2]
[364531114,1749129047333,-628.44,0.00019726,2]
[364531117,1749129047343,-440.0,0.00019726,2]
[364531118,1749129047352,-1767.63,0.00019726,2]
[364531120,1749129047362,-523.36,0.00019726,2]
[364531123,1749129047371,-722.24,0.00019726,2]
[364531125,1749129047381,-440.0,0.00019726,2]
[364531126,1749129047391,-525.45,0.00019726,2]
[364531129,1749129047401,-440.0,0.00019726,2]
[364531131,1749129047410,-462.79846069,0.00019726,2]
[364531133,1749129047419,-440.0,0.00019726,2]
[364531134,1749129047428,-1310.04,0.00019726,2]
[364531136,1749129047437,-433.85,0.00019726,2]
[364531138,1749129047447,-440.0,0.00019726,2]
[364531140,1749129047457,-440.0,0.00019726,2]
[364531142,1749129047467,-277.87887871,0.00019726,2]
[364531144,1749129047477,-440.0,0.00019726,2]
[364531146,1749129047486,-591.03,0.00019726,2]
[364531148,1749129047496,-777.48,0.00019726,2]
[364531150,1749129047505,-6412.96,0.00019726,2]
[364531152,1749129047515,-440.0,0.00019726,2]
[364531154,1749129047524,-1989.41,0.00019726,2]
[364531156,1749129047533,-440.0,0.00019726,2]
[364531158,1749129047543,-2786.91,0.00019726,2]
[364531160,1749129047552,-200.10470056,0.00019726,2]
[364531162,1749129047561,-3698.19,0.00019726,2]
[364531164,1749129047571,-440.0,0.00019726,2]
[364531166,1749129047580,-1298.6,0.00019726,2]
[364531168,1749129047589,-440.0,0.00019726,2]
[364531170,1749129047598,-2628.56,0.00019726,2]
[364531172,1749129047608,-750.16,0.00019726,2]
[364531174,1749129047617,-441.11,0.00019726,2]
[364531176,1749129047627,-642.44,0.00019726,2]
[364531178,1749129047637,-1111.6,0.00019726,2]
[364531180,1749129047646,-462.43854041,0.00019726,2]
[364531182,1749129047656,-845.64,0.00019726,2]
[364531184,1749129047665,-4147.91,0.00019726,2]
[364531186,1749129047675,-525.79,0.00019726,2]
[364531188,1749129047684,-657.97,0.00019726,2]
[364531190,1749129047694,-440.0,0.00019726,2]
[364531192,1749129047703,-233.94907006,0.00019732,2]
[364531194,1749129047712,-500.0,0.00019732,2]
[364531196,1749129047721,-413.15333481,0.00019732,2]
[364531198,1749129047730,-500.0,0.00019732,2]
[364531200,1749129047739,-170.71689639,0.00019732,2]
[364531202,1749129047749,-572.57745793,0.00019732,2]
[364531204,1749129047758,-462.52018096,0.00019732,2]
[364531206,1749129047767,-500.0,0.00019732,2]
[364531208,1749129047776,-500.0,0.00019732,2]
[364531210,1749129047785,-500.0,0.00019732,2]
[364531212,1749129047795,-500.0,0.00019732,2]
[364531214,1749129047804,-500.0,0.00019732,2]
[364531216,1749129047813,-500.0,0.00019732,2]
[364531218,1749129047823,-500.0,0.00019732,2]
[364531220,1749129047832,-500.0,0.00019732,2]
[364531222,1749129047843,-500.0,0.00019732,2]
[364531224,1749129047851,-1003.87350031,0.00019733,2]
[364531226,1749129047861,-269.53884081,0.00019733,2]
[364531228,1749129047871,-1000.0,0.00019733,2]
[364531230,1749129047880,-1000.0,0.00019733,2]
[364531232,1749129047890,-501.75675153,0.00019733,2]
[364531234,1749129047899,-635.04327418,0.00019748,2]
[364531236,1749129047908,-503.20737064,0.00019768,2]
[364531238,1749129047919,-1000.0,0.00019782,2]
[364531240,1749129047928,-500.0,0.00019782,2]
[364531242,1749129047937,-500.0,0.00019782,2]
[364531244,1749129047947,-1000.0,0.00019782,2]
[364531246,1749129047957,-500.0,0.00019782,2]
[364531248,1749129047967,-432.78039757,0.000199,2]
[364531250,1749129047977,-151.0,0.000199,2]
[364531252,1749129047987,-635.57,0.00019923,2]
[364531254,1749129047996,-16000.0,0.00019989,2]
[364531256,1749129048007,-5745.64267181,0.0002,2]
[364531258,1749129048016,-5584.46016941,0.0002,3]
[364531260,1749129048026,-483.99,0.0002,2]
[364531262,1749129048035,-856.61,0.0002,2]
[364531264,1749129048045,-276.95083678,0.0002,2]
[364531267,1749129048055,-858.83,0.0002,2]
[364531268,1749129048064,-535.8,0.0002,2]
[364531270,1749129048074,-587.49,0.0002,2]
[364531272,1749129048084,-440.0,0.0002,2]
[364531275,1749129048093,-440.0,0.0002,2]
[364531277,1749129048104,-192.83495075,0.0002,2]
[364531290,1749129048241,-883.15,0.0002,2]
[364531293,1749129048251,-440.0,0.0002,2]
[364531294,1749129048261,-440.0,0.0002,2]
[364531297,1749129048273,-365.54,0.0002,2]
[364531299,1749129048283,-440.0,0.0002,2]
[364531301,1749129048292,-440.0,0.0002,2]
[364531303,1749129048303,-440.0,0.0002,2]
[364531305,1749129048313,-440.0,0.0002,2]
[364531307,1749129048323,-440.0,0.0002,2]
[364531309,1749129048332,-440.0,0.0002,2]
[364531311,1749129048341,-440.0,0.0002,2]
[364531313,1749129048351,-440.0,0.0002,2]
[364531315,1749129048361,-473.1,0.0002,2]
[364531317,1749129048371,-672.93,0.0002,2]
[364531319,1749129048381,-440.0,0.0002,2]
[364531321,1749129048391,-461.38,0.0002,2]
[364531323,1749129048401,-256.57161103,0.0002,2]
[364531325,1749129048411,-440.0,0.0002,2]
[364531327,1749129048420,-440.0,0.0002,2]
[364531329,1749129048430,-672.47,0.0002,2]